Cogmind - Beta 12 @@@ ROGUE MODE // 2023.12.04 @ 16:12:47 Player: zapruda Result: Destroyed by P-80 Master with Gamma Rifle Performance ------------- Evolutions (7) 3500 Regions Visited (17) 3400 Robots Destroyed (87) 435 Value Destroyed (2416) 2416 Prototype IDs (39) 780 Alien Tech Used (0) 0 Bonus (2142) 2142 TOTAL SCORE: 12673 Bonus ------- Triggered Max Security 1000 High Alert Combat Kills 342 Aligned with FarCom 300 Scanned by Researcher 500 Cogmind --------- Core Integrity 0/1300 Matter 259/300 Energy 100/100 System Corruption 18% Temperature Cool (0) Movement Core (50) Location -3/Testing Parts ------- > --- POWER (3) -------- (None) > --- PROPULSION (5) --- (None) > --- UTILITY (11) ----- Enhanced Optical Array > --- WEAPON (2) ------- (None) > --- INVENTORY (5) ---- Long-range Terrain Scanner Improved Potential Cannon Heavy Pick Peak State ------------ > --- POWER ------------ Light Ion Engine Light Ion Engine Micro Antimatter Reactor > --- PROPULSION ------- Myomer Exoskeleton Antigrav System Antigrav System > --- UTILITY ---------- Small Storage Unit Experimental Energy Well Structural Scanner Machine Analyzer Enhanced Optical Array Advanced Transmission Jammer Hacking Suite Advanced Hacking Suite System Shield Makeshift System Shield Advanced System Shield > --- WEAPON ----------- Improved Potential Cannon > --- INVENTORY -------- Long-range Terrain Scanner Chainsword Greatsword Heavy Pick [Rating: 137] Favorites ----------- Power Light Ion Engine Engine Light Ion Engine Power Core Light Neutrino Core Reactor Micro Antimatter Reactor Propulsion Xenon Bombardment Thruster Treads Light Treads Leg Aluminum Leg Wheel Wheel Hover Unit Improved Gravmag System Flight Unit Xenon Bombardment Thruster Utility System Shield Device Gravity Neutralizer Storage High-capacity Storage Unit Processor Enhanced Optical Array Hackware System Shield Protection Core Shielding Weapon Chainsword Energy Gun Particle Gun Energy Cannon Improved Potential Cannon Ballistic Gun Assault Rifle Launcher Mini Grenade Launcher Special Weapon Improved Plasma Cutter Slashing Weapon Chainsword Piercing Weapon Heavy Pick Build | -11 -10 -10 -10 -9 -8 -7 -6 -6 -6 -5 -4 -4 -4 -4 -3 -3 -3 ------- Run | Jun Mat Min Exi Min Mat Fac Fac Low Low Fac Fac Upp Upp Zhi Pro Res Tes Slots Evolved 14 | . . . . . 4 2 2 . . 2 2 . . . . 2 . Power 2 | . . . . . . . . . . 1 1 . . . . . . Propulsion 3 | . . . . . 1 1 . . . . 1 . . . . . . Utility 9 | . . . . . 3 1 2 . . 1 . . . . . 2 . Weapon . | . . . . . . . . . . . . . . . . . . Parts Attached 176 | . 15 4 1 . 37 13 15 1 3 37 8 2 11 . 2 14 13 Power 26 | . 1 . . . 3 1 1 . 1 10 1 . 4 . . 3 1 Engine 8 | . 1 . . . 2 1 1 . . 1 . . . . . 2 . Core 16 | . . . . . 1 . . . 1 9 1 . 4 . . . . Reactor 2 | . . . . . . . . . . . . . . . . 1 1 Propulsion 52 | . 4 3 . . 11 4 6 1 1 7 4 . 3 . . 4 4 Treads 4 | . 3 . . . . . . . . . . . 1 . . . . Leg 12 | . 1 3 . . 6 . . . . . . . 1 . . . 1 Wheel 5 | . . . . . . . . . . . . . . . . 4 1 Hover 5 | . . . . . . . . . . . 2 . 1 . . . 2 Flight 26 | . . . . . 5 4 6 1 1 7 2 . . . . . . Utility 66 | . 6 . 1 . 13 6 5 . 1 16 3 2 2 . 2 6 3 Device 31 | . 2 . . . 6 1 4 . 1 6 1 2 1 . 1 6 . Storage 8 | . 1 . 1 . 1 . . . . 1 . . 1 . . . 3 Processor 7 | . . . . . 3 1 . . . 2 1 . . . . . . Hackware 12 | . . . . . 1 2 1 . . 6 1 . . . 1 . . Protection 8 | . 3 . . . 2 2 . . . 1 . . . . . . . Artifact . | . . . . . . . . . . . . . . . . . . Weapon 32 | . 4 1 . . 10 2 3 . . 4 . . 2 . . 1 5 Energy Gun 11 | . 2 . . . 8 1 . . . . . . . . . . . Energy Cannon 2 | . . . . . . . . . . . . . . . . . 2 Ballistic Gun 2 | . 2 . . . . . . . . . . . . . . . . Ballistic Cannon . | . . . . . . . . . . . . . . . . . . Launcher 1 | . . 1 . . . . . . . . . . . . . . . Special Weapon 1 | . . . . . . . . . . 1 . . . . . . . Impact Weapon . | . . . . . . . . . . . . . . . . . . Slashing Weapon 13 | . . . . . 2 1 3 . . 3 . . . . . 1 3 Piercing Weapon 2 | . . . . . . . . . . . . . 2 . . . . Special Melee Weapon . | . . . . . . . . . . . . . . . . . . Unidentified Prototypes 15 | . . . . . 3 1 3 . . 2 . . . . . 1 5 Parts Lost 64 | . 5 2 . . 6 2 . 1 2 16 1 1 7 . 5 . 16 Power 10 | . 1 . . . . . . . . 5 . . 1 . . . 3 Propulsion 25 | . 2 1 . . 3 1 . 1 2 4 . 1 5 . 2 . 3 Utility 20 | . 1 . . . 1 1 . . . 4 1 . 1 . 3 . 8 Weapon 9 | . 1 1 . . 2 . . . . 3 . . . . . . 2 Highest Loss Streak 10 | . 2 2 . . 2 1 . 1 2 6 1 1 5 . 2 . 10 To Critical Strikes . | . . . . . . . . . . . . . . . . . . Average Slot Usage (%) 90 | . 99 100 100 100 99 97 99 100 94 85 78 84 65 63 56 55 51 Engine 7 | . 14 14 14 14 7 7 6 6 5 . 5 5 . . . 2 3 Core 1 | . . . . . 1 . . . . 9 1 . . . . . . Treads 5 | . 25 3 . . . . . . . . . . 1 5 3 . . Leg 7 | . 2 24 28 28 24 . . . . . . . 1 . . . 1 Flight 9 | . . . . . 2 29 25 26 23 15 17 21 6 5 5 . . Device 6 | . 6 . . . 10 7 12 13 10 5 3 5 5 5 4 6 5 Storage 8 | . 14 14 14 14 9 7 6 6 6 5 5 5 . . . . 5 Processor 6 | . . . . . 9 15 13 13 13 8 11 15 15 15 12 9 5 Hackware 11 | . . . . . . 11 20 20 20 28 21 21 21 21 22 23 14 Protection 5 | . 7 14 14 14 15 1 . . . . . . . . . . . Energy Gun 6 | . 14 14 14 14 16 . . . . . . . . . . . . Ballistic Gun 3 | . 13 1 . . . . . . . . . . . . . . . Launcher 2 | . . 12 14 14 . . . . . . . . . . . . . Slashing Weapon 4 | . . . . . 1 15 13 13 13 7 5 5 5 5 5 4 2 Naked Turns . | . . . . . . . . . . . . . . . . . . Heaviest Build 56 | 12 54 48 48 48 56 27 30 30 30 36 39 26 52 7 9 14 40 Greatest Support 100 | 20 40 20 20 20 30 30 36 36 39 37 39 27 27 27 27 40 100 Greatest Overweight (x) 9 | . 2 2 2 2 9 1 1 . . 4 . 1 2 . 1 4 2 Average Overweight (x) . | . . 2 2 2 . . . . . . . . . . . . . Largest Inventory Capacity 20 | 8 20 20 20 20 20 10 10 10 10 10 10 10 10 5 5 5 8 Average Capacity 13 | 8 19 20 20 20 19 10 10 10 10 10 10 10 5 5 5 5 6 Most Carried 20 | 6 20 20 20 20 20 10 10 10 10 10 10 10 9 5 5 5 8 Average Carried 12 | 6 16 18 19 20 17 9 9 9 9 7 8 10 5 5 4 4 4 Final Capacity 20 | 8 20 20 20 20 10 10 10 10 10 10 10 10 5 5 5 5 5 Final Carried 20 | 6 20 19 20 20 10 10 10 10 9 5 10 10 5 5 5 5 4 Class Distribution -------------------- 39% | Mutant 17% | Hacker-Mutant 15% | Hacker-Scout 8% | Hacker-Sprinter 7% | Scavenger-Mutant 5% | Hacker-Assassin 3% | Wizard-Mutant Dominant Class ---------------- Mutant | -10/Materials Mutant | -10/Mines Mutant | -10/Exiles Mutant | -9/Mines Scavenger-Mutant | -8/Materials Hacker-Scout | -7/Factory Hacker-Scout | -6/Factory Hacker-Sprinter | -6/Lower Caves Hacker-Sprinter | -6/Lower Caves Hacker-Mutant | -5/Factory Hacker-Sprinter | -4/Factory Hacker-Sprinter | -4/Upper Caves Hacker-Mutant | -4/Upper Caves Hacker-Mutant | -4/Zhirov Hacker-Mutant | -3/Proximity Caves Hacker-Assassin | -3/Research Hacker-Mutant | -3/Testing Resources | -11 -10 -10 -10 -9 -8 -7 -6 -6 -6 -5 -4 -4 -4 -4 -3 -3 -3 ----------- Run | Jun Mat Min Exi Min Mat Fac Fac Low Low Fac Fac Upp Upp Zhi Pro Res Tes Matter Collected 2305 | 200 658 30 . . 395 178 118 32 7 233 . 58 210 . 21 123 42 Remotely . | . . . . . . . . . . . . . . . . . . Salvage Created 3873 | . 766 67 . 18 1039 309 154 . . 625 102 . 181 . . 123 489 Parts 188 | . 46 4 . 4 49 7 15 . . 20 2 . 8 . . 15 18 Haulers Intercepted 13 | . 2 . . . 3 3 1 . . 3 1 . . . . . . Recyclers Shooed 2 | . 1 . . . 1 . . . . . . . . . . . . Parts Field Recycled . | . . . . . . . . . . . . . . . . . . Retrieved Matter . | . . . . . . . . . . . . . . . . . . Parts Self-Destructed 9 | . . . . . . . . . . . . . 9 . . . . Prevented . | . . . . . . . . . . . . . . . . . . Kills | -11 -10 -10 -10 -9 -8 -7 -6 -6 -6 -5 -4 -4 -4 -4 -3 -3 -3 ------- Run | Jun Mat Min Exi Min Mat Fac Fac Low Low Fac Fac Upp Upp Zhi Pro Res Tes Combat Hostiles Destroyed 41 | . 12 2 . 2 13 4 . . . 1 . . 2 . . . 5 Melee 7 | . . . . . . 4 . . . 1 . . 2 . . . . Guns 24 | . 12 . . . 12 . . . . . . . . . . . . AOE 9 | . . 2 . 2 . . . . . . . . . . . . 5 Classes Destroyed 17 | . 6 . . 1 2 1 . . . 1 . . 1 . . 1 4 Worker 7 | . 2 . . . 1 1 . . . 1 . . . . . 2 . Builder 6 | . 1 . . . . . 1 . . 2 . . . . . 2 . Tunneler 2 | . . . . . . . . . . . . . . . . 2 . Hauler 13 | . 2 . . . 3 3 1 . . 3 1 . . . . . . Recycler 4 | . . . . . 3 . . . . 1 . . . . . . . Carrier 1 | . . . . . . . . . . . . . . . . . 1 Mechanic 1 | . . . . . . . . . . . . . . . . . 1 Operator 4 | . 2 . . . 2 . . . . . . . . . . . . Watcher 7 | . 3 . . . 1 . 2 . . 1 . . . . . . . Swarmer 5 | . . . . 2 . 3 . . . . . . . . . . . Grunt 30 | . 12 2 . . 12 . . . . . . . . . . . 4 Brawler 1 | . . . . . . . . . . . . . . . . . 1 Researcher 1 | . . . . . . . . . . . . . . . . . 1 Sentry 2 | . . . . . . 1 . . . . . . 1 . . . . Hunter 1 | . . . . . 1 . . . . . . . . . . . . Programmer 1 | . . . . . . . . . . 1 . . . . . . . Mutant 1 | . . . . . . . . . . . . . 1 . . . . Best Kill Streak 7 | . 3 2 . 2 6 3 2 . . 3 1 . 1 . . 2 7 Combat Bots Only 5 | . 3 2 . 2 2 3 . . . 1 . . 1 . . . 5 Max Kills in Single Turn 4 | . 1 1 . 2 2 1 1 . . 1 1 . 1 . . 1 4 Gunslinging 1 | . . . . . 1 . . . . . . . . . . . . Exploded 4 | . . 1 . 2 . . . . . . . . . . . . 4 Melee 1 | . . . . . . 1 . . . 1 . . 1 . . . . Uniques/NPCs Destroyed . | . . . . . . . . . . . . . . . . . . Combat | -11 -10 -10 -10 -9 -8 -7 -6 -6 -6 -5 -4 -4 -4 -4 -3 -3 -3 -------- Run | Jun Mat Min Exi Min Mat Fac Fac Low Low Fac Fac Upp Upp Zhi Pro Res Tes Damage Taken 9180 | . 992 195 . 15 809 324 . 35 288 1572 169 195 356 . 868 . 3362 Core 2824 | . 152 24 . . 120 88 . . 73 549 85 45 51 . 336 . 1301 Absorbed by Shields 871 | . . . . . . . . . . . . . . . . . 871 Redirected to Shielding 73 | . 22 5 . . 46 . . . . . . . . . . . . Regen/Repaired (Parts) 99 | . 99 . . . . . . . . . . . . . . . . Core Remaining (%) 69 | 100 . . . 29 78 87 . . 91 45 . . . . 55 . . Volleys Fired 167 | . 89 6 . 1 68 . . . . 1 . . . . . . 2 Largest 2 | . 2 2 . 2 2 . . . . 1 . . . . . . 1 Hottest 200 | . 85 95 . 95 130 . . . . 20 . . . . . . 200 Shots Fired 326 | . 176 12 . 2 133 . . . . 1 . . . . . . 2 Gun 320 | . 176 10 . 1 133 . . . . . . . . . . . . Cannon 2 | . . . . . . . . . . . . . . . . . 2 Launcher 3 | . . 2 . 1 . . . . . . . . . . . . . Special 1 | . . . . . . . . . . 1 . . . . . . . Kinetic 93 | . 89 4 . . . . . . . . . . . . . . . Thermal 219 | . 76 6 . 1 133 . . . . 1 . . . . . . 2 Explosive 3 | . . 2 . 1 . . . . . . . . . . . . . Electromagnetic 11 | . 11 . . . . . . . . . . . . . . . . Robot Hit Streak 12 | . 7 2 . 1 12 . . . . . . . . . . . 5 Robot Miss Streak 6 | . 5 3 . 1 6 . . . . . . . . . . . . Penetration Max . | . . . . . . . . . . . . . . . . . . Secondary Targets 3 | . 1 . . . 2 . . . . . . . . . . . . Max Gunslinging Chain 1 | . 1 . . . 1 . . . . . . . . . . . . Shots Hit Robots 267 | . 105 5 . 1 87 22 7 . . 24 1 . 5 . . 7 3 Core Hits 133 | . 37 4 . 2 51 8 4 . . 6 . . 4 . . 4 13 Critical Kills . | . . . . . . . . . . . . . . . . . . Critical Parts Destroyed . | . . . . . . . . . . . . . . . . . . Critical Strikes 13 | . 2 . . . 7 3 . . . . . . 1 . . . . Burn 9 | . 2 . . . 7 . . . . . . . . . . . . Sever 3 | . . . . . . 3 . . . . . . . . . . . Impale 1 | . . . . . . . . . . . . . 1 . . . . Melee Attacks 258 | . . . . . 4 55 52 . . 107 11 . 7 . . 7 15 Impact . | . . . . . . . . . . . . . . . . . . Slashing 253 | . . . . . 4 55 52 . . 107 11 . 2 . . 7 15 Piercing 5 | . . . . . . . . . . . . . 5 . . . . Sneak Attacks 26 | . . . . . 2 5 2 . . 8 1 . . . . 7 1 Combat Hostiles . | . . . . . . . . . . . . . . . . . . Follow-up Attacks 8 | . . . . . . 3 1 . . 3 . . 1 . . . . Damage Inflicted 9589 | . 1450 213 . 122 1464 1086 344 . . 1311 76 . 190 . . 506 2827 Guns 2820 | . 1442 91 . . 1287 . . . . . . . . . . . . Cannons 266 | . . . . . . . . . . . . . . . . . 266 Explosions 2660 | . . 122 . 122 . . . . . . . . . . . . 2416 Melee 3825 | . . . . . 177 1086 344 . . 1311 76 . 190 . . 506 135 Ramming 18 | . 8 . . . . . . . . . . . . . . . 10 Kinetic 693 | . 683 10 . . . . . . . . . . . . . . . Thermal 4731 | . 681 81 . . 1287 . . . . . . . . . . . 2682 Explosive 244 | . . 122 . 122 . . . . . . . . . . . . . Electromagnetic 78 | . 78 . . . . . . . . . . . . . . . . Impact . | . . . . . . . . . . . . . . . . . . Slashing 3676 | . . . . . 177 1086 344 . . 1311 76 . 41 . . 506 135 Piercing 149 | . . . . . . . . . . . . . 149 . . . . Highest Corruption 18 | . 1 1 1 1 . . . . 1 6 . . . . 5 . 18 Average Corruption 1 | . 1 1 1 1 . . . . 1 3 . . . . 3 . 15 Corruption Purged . | . . . . . . . . . . . . . . . . . . Corruption Blocked . | . . . . . . . . . . . . . . . . . . Effects 63 | . 22 1 14 . . . . . 1 17 . . . . 1 . 7 Message Errors 18 | . 6 1 5 . . . . . . 4 . . . . 1 . 1 Matter Fused 15 | . 4 . 5 . . . . . . 3 . . . . . . 3 Heat Flow Errors 6 | . 2 . . . . . . . . 4 . . . . . . . Energy Discharges 9 | . 2 . 2 . . . . . . 3 . . . . . . 2 Parts Rejected 3 | . . . . . . . . . 1 2 . . . . . . . Data Loss (minor) 6 | . 3 . 2 . . . . . . . . . . . . . 1 Data Loss (major) 1 | . 1 . . . . . . . . . . . . . . . . Misfires 2 | . 2 . . . . . . . . . . . . . . . . Alerts 2 | . 1 . . . . . . . . 1 . . . . . . . Weapon Failures 1 | . 1 . . . . . . . . . . . . . . . . Overload Shots . | . . . . . . . . . . . . . . . . . . Overflow Damage 776 | . . . . . . 29 30 . . 285 52 . 14 . . 130 236 Projectiles 31 | . . . . . . . . . . . . . . . . . 31 Explosions 140 | . . . . . . . . . . . . . . . . . 140 Melee 605 | . . . . . . 29 30 . . 285 52 . 14 . . 130 65 Knockbacks . | . . . . . . . . . . . . . . . . . . Impact . | . . . . . . . . . . . . . . . . . . Kinetic . | . . . . . . . . . . . . . . . . . . Secondary . | . . . . . . . . . . . . . . . . . . Self-Inflicted Damage 46 | . . . . . . . . . . . . . . . . . 46 Shots 1 | . . . . . . . . . . . . . . . . . 1 Rammed 2 | . 1 . . . . . . . . . . . . . . . 1 Targets Rammed 3 | . 2 . . . . . . . . . . . . . . . 1 Kicked . | . . . . . . . . . . . . . . . . . . Crushed 1 | . 1 . . . . . . . . . . . . . . . . Highest Temperature 380 | . 269 230 . 33 16 . . . . 248 . . . . . . 380 Average Temperature 96 | . 93 120 . 19 3 . . . . 99 . . . . . . 219 Received Heat Transfer 2328 | . 564 108 . . 459 54 . . . 243 9 . 27 . 39 . 825 Effects 2 | . 1 . . . . . . . . 1 . . . . . . . Energy Bleed 1 | . . . . . . . . . . 1 . . . . . . . Interference 1 | . 1 . . . . . . . . . . . . . . . . Siege Activations . | . . . . . . . . . . . . . . . . . . Robots Corrupted . | . . . . . . . . . . . . . . . . . . Combat Hostiles . | . . . . . . . . . . . . . . . . . . Parts Fried . | . . . . . . . . . . . . . . . . . . Impact Corruptions . | . . . . . . . . . . . . . . . . . . Robots Melted 1 | . . . . . 1 . . . . . . . . . . . . Combat Hostiles 1 | . . . . . 1 . . . . . . . . . . . . Parts Melted 11 | . . . . . 9 . . . . 1 . . . . . . 1 Heat Transferred 8053 | . 1887 185 . . 3561 . . . . . . . . . . . 2420 Parts Sabotaged 1 | . . . . . . . . . . . . . . . . . 1 Parts Stolen . | . . . . . . . . . . . . . . . . . . Parts Stripped . | . . . . . . . . . . . . . . . . . . Power Chain Reactions . | . . . . . . . . . . . . . . . . . . Missiles Intercepted . | . . . . . . . . . . . . . . . . . . Alert | -11 -10 -10 -10 -9 -8 -7 -6 -6 -6 -5 -4 -4 -4 -4 -3 -3 -3 ------- Run | Jun Mat Min Exi Min Mat Fac Fac Low Low Fac Fac Upp Upp Zhi Pro Res Tes Peak Influence 2029 | . 136 95 . 94 207 128 189 . . 246 162 . . . . 56 2029 Initial 100 | . . 39 . . 36 13 44 . . 88 100 . . . . 36 2 Average 125 | . 38 85 . 18 99 31 81 . . 92 111 . . . . 31 1787 Maximum Alert Level 5 | . . . . . 1 . . . . 1 . . . . . . 5 Low Security (%) 95 | 100 100 100 . 100 99 100 100 . . 96 100 . . . . 100 . Level 1 . | . . . . . . . . . . 3 . . . . . . . Level 2 . | . . . . . . . . . . . . . . . . . . Level 3 . | . . . . . . . . . . . . . . . . . . Level 4 . | . . . . . . . . . . . . . . . . . . Level 5 . | . . . . . . . . . . . . . . . . . . High Security . | . . . . . . . . . . . . . . . . . . Max Security 3 | . . . . . . . . . . . . . . . . . 99 Squads Dispatched 36 | . 4 . . . 2 2 4 . . 8 1 . . . . 1 14 Investigation 8 | . 2 . . . . 1 1 . . 3 1 . . . . . . Extermination 5 | . . . . . . 1 1 . . 2 . . . . . 1 . Reinforcement 11 | . 2 . . . 2 . 2 . . 3 . . . . . . 2 Assault 12 | . . . . . . . . . . . . . . . . . 12 Garrison . | . . . . . . . . . . . . . . . . . . Intercept . | . . . . . . . . . . . . . . . . . . Searches Triggered . | . . . . . . . . . . . . . . . . . . Construction Impeded 2 | . . . . . . . 1 . . 1 . . . . . . . Haulers Reinforced . | . . . . . . . . . . . . . . . . . . Active Scanning Responses . | . . . . . . . . . . . . . . . . . . Cargo Convoy Interrupts . | . . . . . . . . . . . . . . . . . . Stealth | -11 -10 -10 -10 -9 -8 -7 -6 -6 -6 -5 -4 -4 -4 -4 -3 -3 -3 --------- Run | Jun Mat Min Exi Min Mat Fac Fac Low Low Fac Fac Upp Upp Zhi Pro Res Tes Distress Signals 9 | . . . . . 1 3 1 . . 2 . . . . . . 2 Communications Jammed 16 | . . . . . . . . . . . . . . . . 1 15 Distress Signals 16 | . . . . . . . . . . . . . . . . 1 15 Times Spotted 272 | . 24 2 . 3 16 21 7 2 13 45 6 10 3 . 12 1 107 Peak Tracking Total 46 | . 3 2 . 3 3 7 2 4 5 7 4 5 1 . 8 2 46 Tactical Retreats 35 | . 3 . . 1 . 3 1 2 3 11 2 2 1 . 3 . 3 Traps | -11 -10 -10 -10 -9 -8 -7 -6 -6 -6 -5 -4 -4 -4 -4 -3 -3 -3 ------- Run | Jun Mat Min Exi Min Mat Fac Fac Low Low Fac Fac Upp Upp Zhi Pro Res Tes Traps Triggered 3 | . . . . . . . 3 . . . . . . . . . . Indirectly . | . . . . . . . . . . . . . . . . . . Trap Hack Attempts . | . . . . . . . . . . . . . . . . . . Triggered . | . . . . . . . . . . . . . . . . . . Disarmed 7 | . . . . . . 6 . . . 1 . . . . . . . Reprogrammed . | . . . . . . . . . . . . . . . . . . Reused . | . . . . . . . . . . . . . . . . . . Traps Extracted . | . . . . . . . . . . . . . . . . . . Installed . | . . . . . . . . . . . . . . . . . . Triggered 1 | . . . . . . . . . . . . . 1 . . . . Machines | -11 -10 -10 -10 -9 -8 -7 -6 -6 -6 -5 -4 -4 -4 -4 -3 -3 -3 ---------- Run | Jun Mat Min Exi Min Mat Fac Fac Low Low Fac Fac Upp Upp Zhi Pro Res Tes Machines Disabled 7 | . . 1 . 1 1 . . . . . . . . . . . 4 Max in Single Turn 1 | . . 1 . 1 1 . . . . . . . . . . . 1 Machines Repaired . | . . . . . . . . . . . . . . . . . . Machines Sabotaged . | . . . . . . . . . . . . . . . . . . Overloaded Fab Kills . | . . . . . . . . . . . . . . . . . . Hacking | -11 -10 -10 -10 -9 -8 -7 -6 -6 -6 -5 -4 -4 -4 -4 -3 -3 -3 --------- Run | Jun Mat Min Exi Min Mat Fac Fac Low Low Fac Fac Upp Upp Zhi Pro Res Tes Machines Accessed 54 | . 6 . 5 . 2 12 12 . 1 14 2 . . . . . . Terminals 34 | . 3 . . . 2 10 10 . . 9 . . . . . . . Fabricators 6 | . . . . . . 1 1 . . 3 1 . . . . . . Repair Stations 2 | . 1 . . . . . . . . 1 . . . . . . . Recycling Units 4 | . 2 . . . . . . . . 1 1 . . . . . . Scanalyzers 2 | . . . . . . 1 1 . . . . . . . . . . Garrison Access . | . . . . . . . . . . . . . . . . . . Total Hacks 237 | . 24 . 50 . 5 46 52 . 1 55 4 . . . . . . Successful 160 | . 10 . 50 . 1 25 32 . 1 38 3 . . . . . . Failed 76 | . 14 . . . 3 21 20 . . 17 1 . . . . . . Catastrophic 15 | . 3 . . . 1 2 5 . . 4 . . . . . . . Database Lockouts 1 | . . . . . 1 . . . . . . . . . . . . Manual 105 | . 7 . 2 . 6 26 27 . . 37 . . . . . . . Terminals 138 | . 14 . . . 5 41 33 . . 45 . . . . . . . Fabricators 14 | . . . . . . 2 3 . . 6 3 . . . . . . Repair Stations 7 | . 5 . . . . . . . . 2 . . . . . . . Recycling Units 8 | . 5 . . . . . . . . 2 1 . . . . . . Scanalyzers 19 | . . . . . . 3 16 . . . . . . . . . . Garrison Access . | . . . . . . . . . . . . . . . . . . Terminal Hacks 95 | . 6 . 50 . 1 13 4 . 1 20 . . . . . . . Record 54 | . 3 . 49 . . 1 . . . 1 . . . . . . . Part Schematic 3 | . . . . . 1 . . . . 2 . . . . . . . Robot Schematic 2 | . . . . . . 1 . . . 1 . . . . . . . Robot Analysis 1 | . 1 . . . . . . . . . . . . . . . . Open Door 1 | . . . . . . . . . 1 . . . . . . . . Machine Index 1 | . . . . . . . . . . 1 . . . . . . . Terminal Index 3 | . . . . . . 1 1 . . 1 . . . . . . . Fabricator Index 1 | . . . . . . 1 . . . . . . . . . . . Scanalyzer Index 1 | . . . . . . 1 . . . . . . . . . . . Alert Level 5 | . . . . . . 2 1 . . 2 . . . . . . . Unreport Threat 2 | . . . . . . 1 . . . 1 . . . . . . . Locate Traps 2 | . . . . . . 1 . . . 1 . . . . . . . Disarm Traps 2 | . . . . . . 1 . . . 1 . . . . . . . Dispatch Records 5 | . 1 . . . . 1 1 . . 2 . . . . . . . Security Status 1 | . . . . . . 1 . . . . . . . . . . . Investigation Status 1 | . 1 . . . . . . . . . . . . . . . . Recall Investigation 4 | . . . . . . . 1 . . 3 . . . . . . . Recall Extermination 1 | . . . . . . 1 . . . . . . . . . . . Recall Reinforcements 1 | . . . . . . . . . . 1 . . . . . . . Zone Layout 1 | . . . . . . . . . . 1 . . . . . . . Garrison Registry 1 | . . . . . . . . . . 1 . . . . . . . Patrol Navigation 1 | . . . . . . . . . . 1 . . . . . . . EX-Prototype ID Bank 1 | . . . 1 . . . . . . . . . . . . . . Fabricator Hacks 12 | . . . . . . 2 2 . . 6 2 . . . . . . Load Schematic 6 | . . . . . . 1 1 . . 3 1 . . . . . . Build 6 | . . . . . . 1 1 . . 3 1 . . . . . . Repair Station Hacks 2 | . 2 . . . . . . . . . . . . . . . . Scan Component 1 | . 1 . . . . . . . . . . . . . . . . Repair 1 | . 1 . . . . . . . . . . . . . . . . Recycling Unit Hacks 4 | . 2 . . . . . . . . 1 1 . . . . . . Retrieve Components 4 | . 2 . . . . . . . . 1 1 . . . . . . Scanalyzer 18 | . . . . . . 2 16 . . . . . . . . . . Insert Component 7 | . . . . . . 1 6 . . . . . . . . . . Analyze 11 | . . . . . . 1 10 . . . . . . . . . . Garrison Access Hacks . | . . . . . . . . . . . . . . . . . . Unauthorized Hacks 29 | . . . . . . 8 10 . . 11 . . . . . . . Terminals 29 | . . . . . . 8 10 . . 11 . . . . . . . Assimilate 4 | . . . . . . 2 . . . 2 . . . . . . . Botnet 25 | . . . . . . 6 10 . . 9 . . . . . . . Fabricators . | . . . . . . . . . . . . . . . . . . Repair Stations . | . . . . . . . . . . . . . . . . . . Recycling Units . | . . . . . . . . . . . . . . . . . . Scanalyzers . | . . . . . . . . . . . . . . . . . . Garrison Access . | . . . . . . . . . . . . . . . . . . Data Cores Recovered . | . . . . . . . . . . . . . . . . . . Used . | . . . . . . . . . . . . . . . . . . Hacking Detections 41 | . 6 . . . 2 11 9 . . 12 1 . . . . . . Full Trace Events 9 | . 3 . . . . 1 1 . . 3 1 . . . . . . Feedback Events 1 | . 1 . . . . . . . . . . . . . . . . Corruption 1 | . 1 . . . . . . . . . . . . . . . . Feedback Blocked . | . . . . . . . . . . . . . . . . . . Robot Schematics Acquired 4 | . . . . . . 1 . . . 1 . . . . . . 2 Robots Built 6 | . . . . . . 1 1 . . 4 . . . . . . . Authchips 1 | . . . . . . . . . . 1 . . . . . . . Time 404 | . . . . . . 116 116 . . 172 . . . . . . . Total Robot Build Rating 27 | . . . . . . 3 3 . . 21 . . . . . . . Part Schematics Acquired 11 | . . . . . 1 1 6 . . 2 . . . . . . 1 Parts Built 2 | . . . . . . . . . . 1 1 . . . . . . Authchips . | . . . . . . . . . . . . . . . . . . Time 106 | . . . . . . . . . . 53 53 . . . . . . Total Part Build Rating 12 | . . . . . . . . . . 6 6 . . . . . . Parts Repaired 1 | . 1 . . . . . . . . . . . . . . . . Time 26 | . 26 . . . . . . . . . . . . . . . . Parts Recycled . | . . . . . . . . . . . . . . . . . . Recycled Matter . | . . . . . . . . . . . . . . . . . . Retrieved Matter . | . . . . . . . . . . . . . . . . . . Retrieved Components 7 | . 3 . . . . . . . . 1 3 . . . . . . Parts Scanalyzed 7 | . . . . . . 1 6 . . . . . . . . . . Part Schematics Acquired 7 | . . . . . . 1 6 . . . . . . . . . . Parts Damaged 2 | . . . . . . . 2 . . . . . . . . . . Bothacking | -11 -10 -10 -10 -9 -8 -7 -6 -6 -6 -5 -4 -4 -4 -4 -3 -3 -3 ------------ Run | Jun Mat Min Exi Min Mat Fac Fac Low Low Fac Fac Upp Upp Zhi Pro Res Tes Used RIF Installer . | . . . . . . . . . . . . . . . . . . Robots Hacked . | . . . . . . . . . . . . . . . . . . Non-combat . | . . . . . . . . . . . . . . . . . . Combat . | . . . . . . . . . . . . . . . . . . Robot Hacks Applied . | . . . . . . . . . . . . . . . . . . Relay Couplers Released . | . . . . . . . . . . . . . . . . . . Fabnet Peak Effective % . | . . . . . . . . . . . . . . . . . . Robots Rewired . | . . . . . . . . . . . . . . . . . . Allies Hacked 1 | . . . . . . . . . . 1 . . . . . . . Hacks Repelled . | . . . . . . . . . . . . . . . . . . Allies | -11 -10 -10 -10 -9 -8 -7 -6 -6 -6 -5 -4 -4 -4 -4 -3 -3 -3 -------- Run | Jun Mat Min Exi Min Mat Fac Fac Low Low Fac Fac Upp Upp Zhi Pro Res Tes Total Allies 10 | . . . . . . 3 1 . . 6 . . . . . . . Largest Group 3 | . . . . . . 2 1 1 . 3 . . . . . . . Highest-Rated Group 126 | . . . . . . 36 26 26 . 126 . . . . . . . Highest-Rated Ally 42 | . . . . . . 26 26 26 . 42 . . . . . . . Total Orders 5 | . . . . . . 3 . . 1 1 . . . . . . . STAY 3 | . . . . . . 2 . . . 1 . . . . . . . FOLLOW 1 | . . . . . . 1 . . . . . . . . . . . EXPLORE 1 | . . . . . . . . . 1 . . . . . . . . Ally Attacks 8 | . . . . . . . . . . 8 . . . . . . . Total Damage 243 | . . . . . . . . . . 243 . . . . . . . Kills . | . . . . . . . . . . . . . . . . . . Allies Corrupted . | . . . . . . . . . . . . . . . . . . Allies Melted . | . . . . . . . . . . . . . . . . . . Intel | -11 -10 -10 -10 -9 -8 -7 -6 -6 -6 -5 -4 -4 -4 -4 -3 -3 -3 ------- Run | Jun Mat Min Exi Min Mat Fac Fac Low Low Fac Fac Upp Upp Zhi Pro Res Tes Robot Analysis Total 1 | . 1 . . . . . . . . . . . . . . . . Derelict Logs Recovered 7 | . . . . . . . . 3 . . . 2 2 . . . . Drone Launches 2 | . . . . . . . . . 2 . . . . . . . . Drone Recoveries 1 | . . . . . . . . . 1 . . . . . . . . Exploration | -11 -10 -10 -10 -9 -8 -7 -6 -6 -6 -5 -4 -4 -4 -4 -3 -3 -3 ------------- Run | Jun Mat Min Exi Min Mat Fac Fac Low Low Fac Fac Upp Upp Zhi Pro Res Tes Turns Passed 10343 | 3 2308 97 1286 157 957 865 801 329 217 1457 228 224 378 4 233 519 280 Spaces Moved 10540 | 3 802 29 493 52 325 1729 1729 656 533 2036 447 519 456 3 290 256 182 Core 126 | . . . . . . . . . . 4 . . . . 3 88 31 Treads 840 | . 700 . . . . . . . . . . . 72 3 65 . . Legs 982 | 3 102 29 493 52 218 . . . . . . . . . . . 85 Wheels 222 | . . . . . . . . . . . . . . . . 168 54 Hover 39 | . . . . . . . . . . . . . 27 . . . 12 Flight 8331 | . . . . . 107 1729 1729 656 533 2032 447 519 357 . 222 . . Fastest Speed 26 | 120 120 260 260 260 34 27 27 29 26 34 32 32 39 170 45 50 50 Average Speed 67 | 120 230 260 260 260 145 27 28 29 30 36 34 32 75 170 79 90 88 Slowest Speed 760 | 120 320 260 260 260 760 99 108 32 37 250 39 110 176 170 170 250 200 Overloaded Moves 42 | . . . . . . . . . 42 . . . . . . . . Propulsion Burnouts . | . . . . . . . . . . . . . . . . . . Robots Hopped 10 | . . . . . . 3 4 . . 3 . . . . . . . Cave-ins Triggered . | . . . . . . . . . . . . . . . . . . Exploration Rate (%) 43 | 2 87 8 91 17 25 41 44 81 66 64 12 71 68 7 49 5 42 Regions Visited 17 Branch Regions 10 Pre-discovered Areas 1 | . . . 1 . . . . . . . . . . . . . . Known Exits Taken 1 | . . . . . . . . 1 . . . . . . . . . Unknown Exits Taken 16 | 1 1 1 1 1 1 1 1 . 1 1 1 1 1 1 1 1 . Scrap Searched 11 | . . . . . . . . 2 3 . . 2 2 . 2 . . Spaces Dug 128 | . . . . . 2 21 31 . . 52 10 . 1 . . . 11 Terrain Destroyed 176 | . . 16 . 19 2 21 31 . . 52 10 . 1 . . . 24 Melee 128 | . . . . . 2 21 31 . . 52 10 . 1 . . . 11 Projectile . | . . . . . . . . . . . . . . . . . . AOE 48 | . . 16 . 19 . . . . . . . . . . . . 13 Terrain Rammed . | . . . . . . . . . . . . . . . . . . Walls Destroyed . | . . . . . . . . . . . . . . . . . . Machines Disabled . | . . . . . . . . . . . . . . . . . . Actions | -11 -10 -10 -10 -9 -8 -7 -6 -6 -6 -5 -4 -4 -4 -4 -3 -3 -3 --------- Run | Jun Mat Min Exi Min Mat Fac Fac Low Low Fac Fac Upp Upp Zhi Pro Res Tes Total 13040 | 2 1086 39 499 73 678 2046 1958 794 591 2613 505 577 477 2 292 532 276 Wait 1630 | . 146 . . 21 181 250 116 137 48 412 27 53 . . . 239 . Move 10503 | 2 801 28 492 51 324 1722 1720 655 532 2029 446 518 455 2 289 255 182 Hop 10 | . . . . . . 3 4 . . 3 . . . . . . . Pick Up 128 | . 26 1 2 . 28 7 12 1 3 20 10 1 . . . 8 9 Fast Attach 38 | . 1 . . . 6 2 6 . . 4 2 . 6 . 1 6 4 Attach 92 | . 7 2 . . 16 6 4 1 2 28 5 . 3 . 1 8 9 Detach 18 | . . . . . . . . . 1 8 1 . 2 . 1 3 2 Swap 46 | . 7 2 1 . 15 5 5 . 1 5 1 2 2 . . . . Drop 104 | . 7 . 2 . 36 5 14 . 4 9 2 3 4 . . 6 12 Fire 167 | . 89 6 . 1 68 . . . . 1 . . . . . . 2 Melee 226 | . . . . . 4 46 44 . . 94 11 . 5 . . 7 15 Ram 1 | . . . . . . . . . . . . . . . . . 1 Kick . | . . . . . . . . . . . . . . . . . . Crush 2 | . 2 . . . . . . . . . . . . . . . . Escape Stasis 73 | . . . . . . . 33 . . . . . . . . . 40 Rewire 2 | . . . 2 . . . . . . . . . . . . . . Trap . | . . . . . . . . . . . . . . . . . . Miscellaneous . | . . . . . . . . . . . . . . . . . . Route ------- -11/Junkyard -10/Materials (discovered 4 exits: [*Mat x2] / [*Min x2]) -10/Mines -10/Exiles -9/Mines -8/Materials -7/Factory (discovered 3 exits: *Fac x3) -6/Factory -6/Lower Caves -6/Lower Caves -5/Factory (discovered 3 exits: *Fac x2 / [*Upp]) -4/Factory -4/Upper Caves -4/Upper Caves -4/Zhirov -3/Proximity Caves -3/Research (discovered 2 exits: Arm / [*Tes]) -3/Testing History --------- Turn | Location | Event 1 | -11/Junkyard | Discovered new exit (range 0) 4 | -11/Junkyard | Entered Materials 316 | -10/Materials | Build established: Mutant 460 | -10/Materials | Discovered new exit (range 9) 605 | -10/Materials | Discovered new exit (range 13) 655 | -10/Materials | Repaired Assault Rifle 793 | -10/Materials | Discovered new exit (range 16) 1058 | -10/Materials | Core integrity fell below 50% 1548 | -10/Materials | Discovered new exit (range 15) 2312 | -10/Materials | Entered Mines 2399 | -10/Mines | Deemed a non-threat by the Exiles lab entrance 2399 | -10/Mines | Discovered new exit (range 5) 2409 | -10/Mines | Entered Exiles 2472 | -10/Exiles | Met 8R-AWN 2519 | -10/Exiles | Met EX-HEX 2635 | -10/Exiles | Met EX-BIN 2703 | -10/Exiles | Aligned with FarCom system 2705 | -10/Exiles | Given EX-Vault access code 2768 | -10/Exiles | Opened EX-Vault 2885 | -10/Exiles | Found Modified TNC 2943 | -10/Exiles | Warned to stay clear of 0b10 Research branches 3008 | -10/Exiles | Met EX-DEC 3095 | -10/Exiles | Visited The Gauntlet 3468 | -10/Exiles | Learned location of Zion (-6) 3663 | -10/Exiles | Discovered new exit (range 14) 3695 | -10/Exiles | Left Exiles lab with Modified TNC 3695 | -10/Exiles | Entered Mines 3842 | -9/Mines | Discovered new exit (range 5) 3852 | -9/Mines | Entered Materials 3852 | -8/Materials | Evolved 4 slots: Propulsion x1, Utility x3 4417 | -8/Materials | Build established: Scavenger-Mutant 4463 | -8/Materials | Discovered new exit (range 18) 4799 | -8/Materials | Central database locked down 4809 | -8/Materials | Entered Factory 4809 | -7/Factory | Evolved 2 slots: Propulsion x1, Utility x1 4949 | -7/Factory | Discovered new exit (range 5) 5202 | -7/Factory | Discovered new exit (range 4) 5655 | -7/Factory | Fabricated O-24 Administrator? 5664 | -7/Factory | Discovered new exit (range 20) 5674 | -7/Factory | Entered another Factory area 5674 | -6/Factory | Evolved 2 slots: Utility x2 5796 | -6/Factory | Build established: Hacker-Scout 6410 | -6/Factory | Fabricated O-24 Administrator? 6468 | -6/Factory | Discovered new exit (range 5) 6475 | -6/Factory | Entered Lower Caves 6475 | -6/Lower Caves | Accompanied by 1 ally 6478 | -6/Lower Caves | Identified exit to Lower Caves 6522 | -6/Lower Caves | Spotted B-75 Beast 6550 | -6/Lower Caves | Learned Factory stockpile data 6753 | -6/Lower Caves | Build established: Hacker-Sprinter 6804 | -6/Lower Caves | Entered another Lower Caves area 6805 | -6/Lower Caves | Discovered new exit (range 6) 6807 | -6/Lower Caves | Encountered a Warlord checkpoint 7021 | -6/Lower Caves | Entered Factory 7021 | -5/Factory | Evolved 2 slots: Power x1, Utility x1 7290 | -5/Factory | Discovered new exit (range 20) 7529 | -5/Factory | Fabricated O-24 Administrator? 7584 | -5/Factory | Build established: Hacker-Mutant 7698 | -5/Factory | Discovered new exit (range 21) 7821 | -5/Factory | Lost 3 parts (1p1n1u) 7899 | -5/Factory | Fabricated Adv. System Shield? 8185 | -5/Factory | Lost 4 parts (2n1u1w) 8222 | -5/Factory | Discovered new exit (range 21) 8350 | -5/Factory | Fabricated C-35 Carver? 8384 | -5/Factory | Core integrity fell below 50% 8423 | -5/Factory | Lost 6 parts (2p1n1u2w) 8478 | -5/Factory | Entered another Factory area 8478 | -4/Factory | Evolved 2 slots: Power x1, Propulsion x1 8510 | -4/Factory | Discovered new exit (range 11) 8602 | -4/Factory | Fabricated Adv. Hacking Suite (x1) 8706 | -4/Factory | Entered Upper Caves 8743 | -4/Upper Caves | Learned location of 1 exit from Research 8763 | -4/Upper Caves | Learned Research terminal intel 8767 | -4/Upper Caves | Discovered new exit (range 21) 8930 | -4/Upper Caves | Entered another Upper Caves area 8932 | -4/Upper Caves | Attracted the attention of an 0b10 checkpoint 8967 | -4/Upper Caves | Spotted B-86 Titan 8996 | -4/Upper Caves | Learned Research trap positions 9012 | -4/Upper Caves | Lost 5 parts (1p4n) 9060 | -4/Upper Caves | Learned 8 Research zone layouts 9173 | -4/Upper Caves | Attacked by a delusional Derelict stockpiling parts 9206 | -4/Upper Caves | Discovered new exit (range 11) 9308 | -4/Upper Caves | Entered Zhirov 9308 | -4/Zhirov | Discovered new exit (range 3) 9312 | -4/Zhirov | Entered Proximity Caves 9440 | -3/Proximity Caves | Ambushed by research squad 9442 | -3/Proximity Caves | Attracted the attention of an 0b10 checkpoint 9541 | -3/Proximity Caves | Discovered new exit (range 10) 9545 | -3/Proximity Caves | Entered Research 9545 | -3/Research | Evolved 2 slots: Utility x2 9546 | -3/Research | Identified exit to Armory 9548 | -3/Research | Loaded intel: 86 trap records 9549 | -3/Research | Loaded intel: 22 terminal locations 9846 | -3/Research | Build established: Hacker-Assassin 9874 | -3/Research | Found Prototype Device 9892 | -3/Research | Identified Exp. Thermal Shield 10033 | -3/Research | Discovered new exit (range 12) 10064 | -3/Research | Entered Testing 10065 | -3/Testing | Maximum security lockdown engaged 10077 | -3/Testing | Found Prototype Energy Cannon 10087 | -3/Testing | Identified Imp. Potential Cannon 10092 | -3/Testing | Found Imp. Potential Cannon 10151 | -3/Testing | Found Prototype Leg 10153 | -3/Testing | Identified Myomer Exoskeleton 10180 | -3/Testing | System corruption reached 10% 10214 | -3/Testing | Lost 10 parts (3p2n5u) 10239 | -3/Testing | Scanned by Researcher 10308 | -3/Testing | Lost 3 parts (1n1u1w) 10311 | -3/Testing | Spotted Investigator 10325 | -3/Testing | Core integrity fell below 50% 10340 | -3/Testing | Core integrity fell below 20% 10344 | -3/Testing | Destroyed by P-80 Master with Gamma Rifle Last Messages --------------- 10339_ E-15 Imp stasis bubble strength at 75. 10339_ Stasis bubble strength at 26. 10339_ Investigator stasis bubble strength at 74. 10340_ Critical hit (Burn: +23). 10340_ Critical hit (Burn: +18). 10340_ Stasis bubble strength at 20. 10340_ Penetrated by Slug. 10340_ Slug penetrates Earth. 10340_ Investigator stasis bubble strength at 65. 10341_ Penetrated by Slug. 10341_ Critical hit (Burn: +18). 10341_ G-67 Veteran held in stasis. 10341_ Stasis bubble strength at 14. 10341_ Investigator stasis bubble strength at 56. 10342_ Stasis bubble strength at 8. 10343_ Stasis bubble strength at 2. 10343_ Investigator stasis bubble strength at 47. 10344_ Slug penetrates Wall. 10344_ Penetrated by Slug. 10344_ Slug penetrates Wall. Map ----- +----------------------------------------------------+ | #########????# # #? #??????????? | | #????????# "! # #??????????? | | #????????# # # #??????????? | | "" #????????# ! # """ / ????????????? | | "" #????????# # """ #???????????????? | | "" #????????############## """ #???????????????? | | #?????????????????????# """ #???????????????? | | #?????????????????????# """ #???????????????? | | #####?????????????????????# """ #???????????????? | | ???????????????????w??????# """ #????#??????????? | | ??????????????????????????# #??? #+#????????? | | ??????????????????????????# #?? #????????? | | ??????????????????????????# #?h #????????? | | ??????????????????????????# hg #? #????????? | | ??????????????????????????##Y##### #????????? | | ???????????????###+####+###g###### ########?? | | ???????????????# YC g h #?? | | ???????????????# YYh C ^ #???????? | | ???????????????# gcgC #???????? | | ???????? ggY ^ #???????? | | ?????????####### ##########Y######+####???????? | | ???????????????# ??????# g% #?????????????? | | ???????????????# ??w?????#h g icl #?????????????? | | ?????????????? ???????### epc g #?????????????? | | ????????????# ??????#### #lgc Yp g #?????????????? | | ????????????#???????# @h g b"" #?????????????? | | ????????????????????## ###ggp""S"" #?????????????? | | ?????????????????????????# """"g #?????????????? | | ?????????????????????????# g #?????????????? | | ?????????????????????????###########?????????????? | | ?????????????????????????????????????????????????? | | ?????????????????????????????????????????????????? | | ?????????????????????????????????????????????????? | | ?????????????????????????????????????????????????? | | ?????????????????????????????????????????????????? | | ?????????????????????????????????????????????????? | | ?????????????????????????????????????????????????? | | ?????????????????????????????????????????????????? | | ?????????????????????????????????????????????????? | | ?????????????????????????????????????????????????? | | ?????????????????????????????????????????????????? | | ?????????????????????????????????????????????????? | | ?????????????????????????????????????????????????? | | ?????????????????????????????????????????????????? | | ?????????????????????????????????????????????????? | | ?????????????????????????????????????????????????? | | ?????????????????????????????????????????????????? | | ?????????????????????????????????????????????????? | | ?????????????????????????????????????????????????? | | ?????????????????????????????????????????????????? | +----------------------------------------------------+ Best States ------------- Heat Dissipation 67 Energy Generation 47 Energy Capacity 1280 Matter Stores 300 Matter Capacity 300 Sight Range 22 Terrain Scan Range 24 Terrain Scan Density 10 ECM Strength 2 Jamming Range 16 Additional Mass Support 12 Armor Coverage 225 Resistance: KI 20 Core Shielding 20 Utility Shielding 33 Evasion (%) 74 Melee Accuracy 8 Recoil Reduction 2 Offensive Hacking 50 Defensive Hacking 35 Authchip Count 1 Item Schematics ----------------- Hacking Suite | -8/Materials | Hacked Chainsword | -7/Factory | Scanalyzed Gravity Neutralizer | -6/Factory | Scanalyzed Mic. Nuclear Core | -6/Factory | Scanalyzed Nuclear Pulse Thruster | -6/Factory | Scanalyzed Imp. Melee Analysis Suite | -6/Factory | Scanalyzed Adv. Melee Analysis Suite | -6/Factory | Scanalyzed Imp. VSS Leg | -6/Factory | Scanalyzed Adv. System Shield | -5/Factory | Hacked Adv. Hacking Suite | -5/Factory | Hacked Cld. Antigrav System | -3/Testing | Archive Robot Schematics ------------------ O-24 Administrator | -7/Factory | Hacked C-35 Carver | -5/Factory | Hacked W-44 Eye | -3/Testing | Archive S-43 Plague | -3/Testing | Archive Fabricated ------------ O-24 Administrator | x1 | -7/Factory O-24 Administrator | x1 | -6/Factory O-24 Administrator | x1 | -5/Factory Adv. System Shield | x1 | -5/Factory C-35 Carver | x3 | -5/Factory | Authchip Adv. Hacking Suite | x1 | -4/Factory Alien Tech Used ----------------- None Achievements -------------- Explorer Leap Before You Look Max Potential Preemptive Strike Prolific Hacker Quantum Hacking Challenges ------------ None Game ------ Seed ThrowingDerelictBeam Manual? 0 Play Time 02:20:52 Cumulative 102.2 hours Start 2023.12.04 @ 13:43:06 End 2023.12.04 @ 16:12:47 Sessions 1 Manual Loads 0 Difficulty Rogue Special Mode None Game No. 146 Rogue 146 Adventurer 0 Explorer 0 Win Type - Total 0 Types 0/0/0/0/0/0/0/0/0 Lore% 31 Gallery% 56 Achievement% 39 Wizard Run 0 Options --------- ASCII 0 Keyboard 0 Movement Mouse Keybinds 0 Fullscreen 2 Font 18/SmallcapsGlow Map View 76x50 Tactical HUD 1 Map Filters NONE Filters NONE Steam 1 RUN: 36087637-5b33-4b5d-a297-527180c1a86d